Workbook

Sheet Title
C1: Calculation practice activities to accompany CHAPTER 2
C3: Social Statistics in Action: A Canadian Introduction
C4: Andrea M. Noack
C6: Oxford University Press, 2018
C8: For more information, visit:
C9: https://www.oupcanada.com/catalog/9780199015214.html

Sheet Frequency Table
B1: PRACTICE COMPLETING FREQUENCY TABLES
B3: Calculate the numbers in the percentage, valid percentage, and cumulative percentage columns using the frequencies (counts) in the yellow highlighted cells. Keep two decimal places throughout your calculations. To check your answers, click on the 'Show Answers' button.
B5: Category | C5: Frequency (F) | D5: Percent | E5: Valid Percent | F5: Cumulative Percent
B7: Attribute 1 | C7: 2 | D7: hidden | E7: hidden | F7: hidden
B8: Attribute 2 | C8: 4 | D8: hidden | E8: hidden | F8: hidden
B9: Attribute 3 | C9: 15 | D9: hidden | E9: hidden | F9: hidden
B10: Attribute 4 | C10: 15 | D10: hidden | E10: hidden | F10: hidden
B11: Attribute 5 | C11: 1 | D11: hidden | E11: hidden | F11: hidden
B12: Attribute 6 | C12: 13 | D12: hidden | E12: hidden | F12: hidden
B13: Attribute 7 | C13: 14 | D13: hidden | E13: hidden | F13: hidden | H13: Need some help?
B14: Attribute 8 | C14: 1 | D14: hidden | E14: hidden | F14: hidden
B15: Valid Total | C15: 65 | D15: hidden | E15: hidden | F15: hidden
B16: Missing attributes | C16: 9 | D16: hidden | E16: hidden | F16: hidden
B17: Total | C17: 74 | D17: hidden | E17: hidden | F17: hidden
B19: FREQUENCY TABLE CALCULATIONS
B20: Category | C20: Frequency (F) | D20: Percent | E20: Valid Percent | F20: Cumulative Percent
B22: Attribute 1 | C22: 2 | D22: (2 ÷ 74) x 100 = ? | E22: (2 ÷ 65) x 100 = ? | F22: (2 ÷ 65) x 100 = ?
B23: Attribute 2 | C23: 4 | D23: (4 ÷ 74) x 100 = ? | E23: (4 ÷ 65) x 100 = ? | F23: (6 ÷ 65) x 100 = ?
B24: Attribute 3 | C24: 15 | D24: (15 ÷ 74) x 100 = ? | E24: (15 ÷ 65) x 100 = ? | F24: (21 ÷ 65) x 100 = ?
B25: Attribute 4 | C25: 15 | D25: (15 ÷ 74) x 100 = ? | E25: (15 ÷ 65) x 100 = ? | F25: (36 ÷ 65) x 100 = ?
B26: Attribute 5 | C26: 1 | D26: (1 ÷ 74) x 100 = ? | E26: (1 ÷ 65) x 100 = ? | F26: (37 ÷ 65) x 100 = ?
B27: Attribute 6 | C27: 13 | D27: (13 ÷ 74) x 100 = ? | E27: (13 ÷ 65) x 100 = ? | F27: (50 ÷ 65) x 100 = ?
B28: Attribute 7 | C28: 14 | D28: (14 ÷ 74) x 100 = ? | E28: (14 ÷ 65) x 100 = ? | F28: (64 ÷ 65) x 100 = ?
B29: Attribute 8 | C29: 1 | D29: (1 ÷ 74) x 100 = ? | E29: (1 ÷ 65) x 100 = ? | F29: (65 ÷ 65) x 100 = ?
B30: Valid Total | C30: 65 | D30: (65 ÷ 74) x 100 = ? | E30: (65 ÷ 65) x 100 = ?
B31: Missing attributes | C31: 9 | D31: (9 ÷ 74) x 100 = ?
B32: Total | C32: 74 | D32: (74 ÷ 74) x 100 = ?

Sheet Ratio
B1: PRACTICE CALCULATING RATIOS
B3: Calculate the ratio of people with attribute 1 to people with attribute 2, using the frequencies (counts) in the yellow highlighted cells. Keep two decimal places throughout your calculations. To check your answer, click on the 'Show Answer' button.
B5: Category | C5: Frequency (F)
E6: Ratio of people with Attribute 1 to people with Attribute 2: | F6: hidden
B7: Attribute 1 | C7: 11
B8: Attribute 2 | C8: 9
B9: Total | C9: 20
D11: Need some help?
B14: RATIO CALCULATION
B15: Ratio
C16: = 11 ÷ 9
C17: = ? or ?:1

Sheet Rate
B1: PRACTICE CALCULATING RATES
B3: Calculate two rates using the frequency (count) and total number of cases in the yellow highlighted cells. First, calculate the rate out of 1,000 people (standardized denominator). Then, calculate the rate "1 out of every _____ cases" have the attribute (standardized numerator). Keep two decimal places throughout your calculations. To check your answers, click on the 'Show Answers' button.
B6: Frequency of Attribute (F) | C6: 122 | E6: Rate: ____ out of 1,000 cases | G6: hidden
B8: Total Number of Cases (N) | C8: 374 | E8: Rate: 1 out of every ____ cases | G8: hidden
D10: Need some help?
B13: RATE CALCULATION: STANDARDIZED DENOMINATOR
B14: Rate out of 1,000
C15: (N)(x) = (F)(1000)
C16: (374)(x) = (122)(1000)
C17: 374x = 122000
C18: x = ? ÷ ?
C19: x = ?
B21: RATE CALCULATION: STANDARDIZED NUMERATOR
B22: 1 out of every _____
C23: (F)(x) = (N)(1)
C24: (122)(x) = (374)(1)
C25: 122x = 374
C26: x = ? ÷ ?
C27: x = ?

Sheet Crosstabulation (2x2)
B1: PRACTICE CALCULATING COLUMN PERCENTAGES: 2x2 CROSSTABULATION
B3: Calculate the column percentages for each cell using the frequencies (counts) in the yellow highlighted cells. Keep two decimal places throughout your calculations. To check your answers, click on the 'Show Answers' button.
B6: FREQUENCIES
D7: Independent Variable
D8: Group 1 | E8: Group 2 | F8: Total
B9: Dependent Variable | C9: Attribute 1 | D9: 5 | E9: 11 | F9: 16
C10: Attribute 2 | D10: 6 | E10: 9 | F10: 15
C11: Total | D11: 11 | E11: 20 | F11: 31
B13: COLUMN PERCENTAGES
D14: Independent Variable | H14: Need some help?
D15: Group 1 | E15: Group 2 | F15: Total
B16: Dependent Variable | C16: Attribute 1 | D16: hidden | E16: hidden | F16: hidden
C17: Attribute 2 | D17: hidden | E17: hidden | F17: hidden
C18: Total | D18: hidden | E18: hidden | F18: hidden
B20: COLUMN PERCENTAGE CALCULATIONS
D21: Independent Variable
D22: Group 1 | E22: Group 2 | F22: Total
B23: Dependent Variable | C23: Attribute 1 | D23: (5 ÷ 11) x 100 = ? | E23: (11 ÷ 20) x 100 = ? | F23: (16 ÷ 31) x 100 = ?
C24: Attribute 2 | D24: (6 ÷ 11) x 100 = ? | E24: (9 ÷ 20) x 100 = ? | F24: (15 ÷ 31) x 100 = ?
C25: Total | D25: (11 ÷ 11) x 100 = ? | E25: (20 ÷ 20) x 100 = ? | F25: (31 ÷ 31) x 100 = ?

Sheet Crosstabulation (3x3)
B1: PRACTICE CALCULATING COLUMN PERCENTAGES: 3x3 CROSSTABULATION
B3: Calculate the column percentages for each cell using the frequencies (counts) in the yellow highlighted cells. Keep two decimal places throughout your calculations. To check your answers, click on the 'Show Answers' button.
B6: FREQUENCIES
D7: Independent Variable
D8: Group 1 | E8: Group 2 | F8: Group 3 | G8: Total
B9: Dependent Variable | C9: Attribute 1 | D9: 1 | E9: 5 | F9: 18 | G9: 24
C10: Attribute 2 | D10: 8 | E10: 17 | F10: 1 | G10: 26
C11: Attribute 3 | D11: 14 | E11: 9 | F11: 5 | G11: 28
C12: Total | D12: 23 | E12: 31 | F12: 24 | G12: 78
B14: COLUMN PERCENTAGES
D15: Independent Variable | I15: Need some help?
D16: Group 1 | E16: Group 2 | F16: Group 3 | G16: Total
B17: Dependent Variable | C17: Attribute 1 | D17: hidden | E17: hidden | F17: hidden | G17: hidden
C18: Attribute 2 | D18: hidden | E18: hidden | F18: hidden | G18: hidden
C19: Attribute 3 | D19: hidden | E19: hidden | F19: hidden | G19: hidden
C20: Total | D20: hidden | E20: hidden | F20: hidden | G20: hidden
B22: COLUMN PERCENTAGE CALCULATIONS
D23: Independent Variable
D24: Group 1 | E24: Group 2 | F24: Group 3 | G24: Total
B25: Dependent Variable | C25: Attribute 1 | D25: (1 ÷ 23) x 100 = ? | E25: (5 ÷ 31) x 100 = ? | F25: (18 ÷ 24) x 100 = ? | G25: (24 ÷ 78) x 100 = ?
C26: Attribute 2 | D26: (8 ÷ 23) x 100 = ? | E26: (17 ÷ 31) x 100 = ? | F26: (1 ÷ 24) x 100 = ? | G26: (26 ÷ 78) x 100 = ?
C27: Attribute 3 | D27: (14 ÷ 23) x 100 = ? | E27: (9 ÷ 31) x 100 = ? | F27: (5 ÷ 24) x 100 = ? | G27: (28 ÷ 78) x 100 = ?
C28: Total | D28: (23 ÷ 23) x 100 = ? | E28: (31 ÷ 31) x 100 = ? | F28: (24 ÷ 24) x 100 = ? | G28: (78 ÷ 78) x 100 = ?

Sheet Frequency Table-A (hidden)
B1: PRACTICE COMPLETING FREQUENCY TABLES
B5: Category | C5: Frequency (# of cases) | D5: Percent | E5: Valid Percent | F5: Cumulative Percent
A7: =RANDBETWEEN(1,20) -> 6 | B7: Attribute 1 | C7: 2 | D7: =ROUND($C7/$C$17,4) -> 0.027 | E7: =ROUND($C7/$C$15,4) -> 0.0308 | F7: =ROUND(SUM($C$7:$C7)/$C$15,4) -> 0.0308
A8: =RANDBETWEEN(1,20) -> 13 | B8: Attribute 2 | C8: 4 | D8: =ROUND($C8/$C$17,4) -> 0.0541 | E8: =ROUND($C8/$C$15,4) -> 0.0615 | F8: =ROUND(SUM($C$7:$C8)/$C$15,4) -> 0.0923
A9: 9 | B9: Attribute 3 | C9: 15 | D9: 0.2027 | E9: 0.2308 | F9: =ROUND(SUM($C$7:$C9)/$C$15,4) -> 0.3231
A10: 5 | B10: Attribute 4 | C10: 15 | D10: 0.2027 | E10: 0.2308 | F10: =ROUND(SUM($C$7:$C10)/$C$15,4) -> 0.5538
A11: 8 | B11: Attribute 5 | C11: 1 | D11: 0.0135 | E11: 0.0154 | F11: =ROUND(SUM($C$7:$C11)/$C$15,4) -> 0.5692
A12: 6 | B12: Attribute 6 | C12: 13 | D12: 0.1757 | E12: 0.2 | F12: =ROUND(SUM($C$7:$C12)/$C$15,4) -> 0.7692
A13: 1 | B13: Attribute 7 | C13: 14 | D13: 0.1892 | E13: 0.2154 | F13: =ROUND(SUM($C$7:$C13)/$C$15,4) -> 0.9846
A14: 17 | B14: Attribute 8 | C14: 1 | D14: 0.0135 | E14: 0.0154 | F14: =ROUND(SUM($C$7:$C14)/$C$15,4) -> 1
A15: =SUM(A7:A14) -> 65 | B15: Valid Total | C15: 65 | D15: 0.8784 | E15: 1
A16: =RANDBETWEEN(1,20) -> 6 | B16: Missing answers | C16: 9 | D16: 0.1216
A17: =SUM(A15:A16) -> 71 | B17: Total | C17: 74 | D17: 1
B20: Category | C20: Frequency (# of cases) | D20: Percent | E20: Valid Percent | F20: Cumulative Percent
B22: Attribute 1 | C22: =C7 -> 2 | D22: =CONCATENATE("(",C22," ÷ ",$C$32,")"," x 100 = ",G22) -> (2 ÷ 74) x 100 = 2.7 | E22: =CONCATENATE("(",C22," ÷ ",$C$30,")"," x 100 = ",H22) -> (2 ÷ 65) x 100 = 3.08 | F22: =CONCATENATE("(",I22," ÷ ",$C$30,")"," x 100 = ",J22) -> (2 ÷ 65) x 100 = 3.08 | G22: =ROUND(((C22/$C$32)*100),2) -> 2.7 | H22: =ROUND(((C22/$C$30)*100),2) -> 3.08 | I22: =SUM(C22) -> 2 | J22: =ROUND(((I22/$C$30)*100),2) -> 3.08
B23: Attribute 2 | C23: 4 | D23: =CONCATENATE("(",C23," ÷ ",$C$32,")"," x 100 = ",G23) -> (4 ÷ 74) x 100 = 5.41 | E23: =CONCATENATE("(",C23," ÷ ",$C$30,")"," x 100 = ",H23) -> (4 ÷ 65) x 100 = 6.15 | F23: =CONCATENATE("(",I23," ÷ ",$C$30,")"," x 100 = ",J23) -> (6 ÷ 65) x 100 = 9.23 | G23: =ROUND(((C23/$C$32)*100),2) -> 5.41 | H23: =ROUND(((C23/$C$30)*100),2) -> 6.15 | I23: =SUM(C22:C23) -> 6 | J23: =ROUND(((I23/$C$30)*100),2) -> 9.23
B24: Attribute 3 | C24: 15 | D24: (15 ÷ 74) x 100 = 20.27 | E24: (15 ÷ 65) x 100 = 23.08 | F24: (21 ÷ 65) x 100 = 32.31 | G24: 20.27 | H24: 23.08 | I24: =SUM(C22:C24) -> 21 | J24: 32.31
B25: Attribute 4 | C25: 15 | D25: (15 ÷ 74) x 100 = 20.27 | E25: (15 ÷ 65) x 100 = 23.08 | F25: (36 ÷ 65) x 100 = 55.38 | G25: 20.27 | H25: 23.08 | I25: =SUM(C22:C25) -> 36 | J25: 55.38
B26: Attribute 5 | C26: 1 | D26: (1 ÷ 74) x 100 = 1.35 | E26: (1 ÷ 65) x 100 = 1.54 | F26: (37 ÷ 65) x 100 = 56.92 | G26: 1.35 | H26: 1.54 | I26: =SUM(C22:C26) -> 37 | J26: 56.92
B27: Attribute 6 | C27: 13 | D27: (13 ÷ 74) x 100 = 17.57 | E27: (13 ÷ 65) x 100 = 20 | F27: (50 ÷ 65) x 100 = 76.92 | G27: 17.57 | H27: 20 | I27: =SUM(C22:C27) -> 50 | J27: 76.92
B28: Attribute 7 | C28: 14 | D28: (14 ÷ 74) x 100 = 18.92 | E28: (14 ÷ 65) x 100 = 21.54 | F28: (64 ÷ 65) x 100 = 98.46 | G28: 18.92 | H28: 21.54 | I28: =SUM(C22:C28) -> 64 | J28: 98.46
B29: Attribute 8 | C29: 1 | D29: (1 ÷ 74) x 100 = 1.35 | E29: (1 ÷ 65) x 100 = 1.54 | F29: (65 ÷ 65) x 100 = 100 | G29: 1.35 | H29: 1.54 | I29: =SUM(C22:C29) -> 65 | J29: 100
B30: Valid Total | C30: 65 | D30: (65 ÷ 74) x 100 = 87.84 | E30: (65 ÷ 65) x 100 = 100 | G30: 87.84 | H30: 100
B31: Missing attributes | C31: 9 | D31: (9 ÷ 74) x 100 = 12.16 | G31: 12.16
B32: Total | C32: 74 | D32: (74 ÷ 74) x 100 = 100 | G32: 100
D34: =CONCATENATE("(",C22," ÷ ",$C$32,")"," x 100 = ?") -> (2 ÷ 74) x 100 = ? | E34: =CONCATENATE("(",C22," ÷ ",$C$30,")"," x 100 = ?") -> (2 ÷ 65) x 100 = ? | F34: =CONCATENATE("(",I22," ÷ ",$C$30,")"," x 100 = ?") -> (2 ÷ 65) x 100 = ?
D35: =CONCATENATE("(",C23," ÷ ",$C$32,")"," x 100 = ?") -> (4 ÷ 74) x 100 = ? | E35: =CONCATENATE("(",C23," ÷ ",$C$30,")"," x 100 = ?") -> (4 ÷ 65) x 100 = ? | F35: =CONCATENATE("(",I23," ÷ ",$C$30,")"," x 100 = ?") -> (6 ÷ 65) x 100 = ?
D36: (15 ÷ 74) x 100 = ? | E36: (15 ÷ 65) x 100 = ? | F36: (21 ÷ 65) x 100 = ?
D37: (15 ÷ 74) x 100 = ? | E37: (15 ÷ 65) x 100 = ? | F37: (36 ÷ 65) x 100 = ?
D38: (1 ÷ 74) x 100 = ? | E38: (1 ÷ 65) x 100 = ? | F38: (37 ÷ 65) x 100 = ?
D39: (13 ÷ 74) x 100 = ? | E39: (13 ÷ 65) x 100 = ? | F39: (50 ÷ 65) x 100 = ?
D40: (14 ÷ 74) x 100 = ? | E40: (14 ÷ 65) x 100 = ? | F40: (64 ÷ 65) x 100 = ?
D41: (1 ÷ 74) x 100 = ? | E41: (1 ÷ 65) x 100 = ? | F41: (65 ÷ 65) x 100 = ?
D42: (65 ÷ 74) x 100 = ? | E42: (65 ÷ 65) x 100 = ?
D43: (9 ÷ 74) x 100 = ?
D44: (74 ÷ 74) x 100 = ?

Sheet Ratio-A (hidden)
B1: PRACTICE CALCULATING RATIOS
B5: Category | C5: Frequency (# of cases)
E6: Ratio of people with Attribute 1 to people with Attribute 2 | F6: =CONCATENATE($D$17," or ",$D$17,":1") -> 1.22 or 1.22:1
A7: =RANDBETWEEN(1,20) -> 9 | B7: Attribute 1 | C7: 11
A8: =RANDBETWEEN(1,20) -> 13 | B8: Attribute 2 | C8: 9
A9: =SUM(A7:A8) -> 22 | C9: 20
B11: Need some help?
B14: RATIO CALCULATION
B15: Ratio | C15: '= F1 ÷ F2
C16: =CONCATENATE("'= ",C7," ÷ ",C8) -> '= 11 ÷ 9
C17: =CONCATENATE("'= ",D17," or ",D17,":1") -> '= 1.22 or 1.22:1 | D17: =ROUND(C7/C8,2) -> 1.22

Sheet Rate-A (hidden)
B1: PRACTICE CALCULATING RATES
A4: =RANDBETWEEN(1,500) -> 97
A5: =RANDBETWEEN(1,500) -> 204
A6: =MIN($A$4,$A$5) -> 97 | B6: Frequency of Attribute (F) | C6: 122 | E6: Rate: ____ out of 1,000 cases | G6: =CONCATENATE("'",$E$19," out of 1,000 cases") -> '326.2 out of 1,000 cases
A8: =MAX($A$4,$A$5) -> 204 | B8: Total Number of Cases (N) | C8: 374 | E8: Rate: 1 out of every ____ cases | G8: =CONCATENATE("'1 out of every ",$E$27," cases") -> '1 out of every 3.07 cases
B10: Need some help?
B13: RATE CALCULATION: STANDARDIZED DENOMINATOR
B14: Rate out of 1,000
C15: (N)(x)=(F)(1000)
C16: =CONCATENATE("'(",$C$8,")(x) = (",$C$6,")(1000)") -> '(374)(x) = (122)(1000)
C17: =CONCATENATE("'",$C$8,"x = ",$E$17) -> '374x = 122000 | E17: =C6*1000 -> 122000
C18: =CONCATENATE("'x = ",$E$17," ÷ ",$C$8) -> 'x = 122000 ÷ 374
C19: =CONCATENATE("'x = ",$E$19) -> 'x = 326.2 | E19: =ROUND(E17/C8,2) -> 326.2
B21: RATE CALCULATION: STANDARDIZED NUMERATOR
B22: 1 out of 1,000
C23: (F)(x)=(N)(1)
C24: =CONCATENATE("'(",$C$6,")(x) = (",$C$8,")(1)") -> '(122)(x) = (374)(1)
C25: =CONCATENATE("'",$C$6,"x = ",$C$8) -> '122x = 374
C26: =CONCATENATE("'x = ",$C$8," ÷ ",$C$6) -> 'x = 374 ÷ 122
C27: =CONCATENATE("'x = ",$E$27) -> 'x = 3.07 | E27: =ROUND(C8/C6,2) -> 3.07

Sheet Crosstabulation (2x2)-A (hidden)
B1: PRACTICE CALCULATING COLUMN PERCENTAGES
B6: OBSERVED COUNTS
D7: Independent Variable
D8: Group 1 | E8: Group 2 | F8: Total
B9: Dependent Variable | C9: Attribute 1 | D9: 5 | E9: 11 | F9: 16 | G9: =RANDBETWEEN(1,20) -> 11 | H9: =RANDBETWEEN(1,20) -> 5 | I9: =SUM(G9:H9) -> 16
C10: Attribute 2 | D10: 6 | E10: 9 | F10: 15 | G10: =RANDBETWEEN(1,20) -> 10 | H10: =RANDBETWEEN(1,20) -> 2 | I10: =SUM(G10:H10) -> 12
C11: Total | D11: 11 | E11: 20 | F11: 31 | G11: =SUM(G9:G10) -> 21 | H11: =SUM(H9:H10) -> 7 | I11: =SUM(G9:H10) -> 28
B13: COLUMN PERCENTAGES
D14: Independent Variable
D15: Group 1 | E15: Group 2 | F15: Total
B16: Dependent Variable | C16: Attribute 1 | D16: =ROUND($D9/$D$11,4) -> 0.4545 | E16: =ROUND($E9/$E$11,4) -> 0.55 | F16: =ROUND($F9/$F$11,4) -> 0.5161
C17: Attribute 2 | D17: =ROUND($D10/$D$11,4) -> 0.5455 | E17: =ROUND($E10/$E$11,4) -> 0.45 | F17: =ROUND($F10/$F$11,4) -> 0.4839
C18: Total | D18: 1 | E18: 1 | F18: 1
D21: Independent Variable
D22: Group 1 | E22: Group 2 | F22: Total
B23: Dependent Variable | C23: Attribute 1 | D23: =CONCATENATE("(",D9," ÷ ",$D$11,") x 100 = ",G23) -> (5 ÷ 11) x 100 = 45.45 | E23: =CONCATENATE("(",E9," ÷ ",$E$11,") x 100 = ",H23) -> (11 ÷ 20) x 100 = 55 | F23: =CONCATENATE("(",F9," ÷ ",$F$11,") x 100 = ",I23) -> (16 ÷ 31) x 100 = 51.61 | G23: =ROUND((D9/$D$11)*100,2) -> 45.45 | H23: =ROUND((E9/$E$11)*100,2) -> 55 | I23: =ROUND((F9/$F$11)*100,2) -> 51.61
C24: Attribute 2 | D24: =CONCATENATE("(",D10," ÷ ",$D$11,") x 100 = ",G24) -> (6 ÷ 11) x 100 = 54.55 | E24: =CONCATENATE("(",E10," ÷ ",$E$11,") x 100 = ",H24) -> (9 ÷ 20) x 100 = 45 | F24: =CONCATENATE("(",F10," ÷ ",$F$11,") x 100 = ",I24) -> (15 ÷ 31) x 100 = 48.39 | G24: =ROUND((D10/$D$11)*100,2) -> 54.55 | H24: =ROUND((E10/$E$11)*100,2) -> 45 | I24: =ROUND((F10/$F$11)*100,2) -> 48.39
C25: Total | D25: =CONCATENATE("(",D11," ÷ ",$D$11,") x 100 = ",G25) -> (11 ÷ 11) x 100 = 100 | E25: =CONCATENATE("(",E11," ÷ ",$E$11,") x 100 = ",H25) -> (20 ÷ 20) x 100 = 100 | F25: =CONCATENATE("(",F11," ÷ ",$F$11,") x 100 = ",I25) -> (31 ÷ 31) x 100 = 100 | G25: 100 | H25: 100 | I25: 100
D27: =CONCATENATE("(",D9," ÷ ",$D$11,") x 100 = ?") -> (5 ÷ 11) x 100 = ? | E27: =CONCATENATE("(",E9," ÷ ",$E$11,") x 100 = ?") -> (11 ÷ 20) x 100 = ? | F27: =CONCATENATE("(",F9," ÷ ",$F$11,") x 100 = ?") -> (16 ÷ 31) x 100 = ?
D28: =CONCATENATE("(",D10," ÷ ",$D$11,") x 100 = ?") -> (6 ÷ 11) x 100 = ? | E28: =CONCATENATE("(",E10," ÷ ",$E$11,") x 100 = ?") -> (9 ÷ 20) x 100 = ? | F28: =CONCATENATE("(",F10," ÷ ",$F$11,") x 100 = ?") -> (15 ÷ 31) x 100 = ?
D29: (11 ÷ 11) x 100 = ? | E29: (20 ÷ 20) x 100 = ? | F29: (31 ÷ 31) x 100 = ?

Sheet Crosstabulation (3x3)-A (hidden)
B1: PRACTICE CALCULATING COLUMN PERCENTAGES
B6: OBSERVED COUNTS
D7: Independent Variable
D8: Group 1 | E8: Group 2 | F8: Group 3 | G8: Total
B9: Dependent Variable | C9: Attribute 1 | D9: 1 | E9: 5 | F9: 18 | G9: 24 | H9: =RANDBETWEEN(1,20) -> 20 | I9: =RANDBETWEEN(1,20) -> 18 | J9: 9 | K9: =SUM(H9:J9) -> 47
C10: Attribute 2 | D10: 8 | E10: 17 | F10: 1 | G10: 26 | H10: =RANDBETWEEN(1,20) -> 6 | I10: 5 | J10: 13 | K10: =SUM(H10:J10) -> 24
C11: Attribute 3 | D11: 14 | E11: 9 | F11: 5 | G11: 28 | H11: 17 | I11: 5 | J11: 8 | K11: =SUM(H11:J11) -> 30
C12: Total | D12: 23 | E12: 31 | F12: 24 | G12: 78 | H12: =SUM(H9:H11) -> 43 | I12: =SUM(I9:I11) -> 28 | J12: =SUM(J9:J11) -> 30 | K12: =SUM(H9:J11) -> 101
B14: COLUMN PERCENTAGES
D15: Independent Variable
D16: Group 1 | E16: Group 2 | F16: Group 3 | G16: Total
B17: Dependent Variable | C17: Attribute 1 | D17: =ROUND(D9/D$12,4) -> 0.0435 | E17: =ROUND(E9/E$12,4) -> 0.1613 | F17: 0.75 | G17: 0.3077
C18: Attribute 2 | D18: =ROUND(D10/D$12,4) -> 0.3478 | E18: 0.5484 | F18: 0.0417 | G18: 0.3333
C19: Attribute 3 | D19: =ROUND(D11/D$12,4) -> 0.6087 | E19: 0.2903 | F19: 0.2083 | G19: 0.359
C20: Total | D20: =ROUND(D12/D$12,4) -> 1 | E20: 1 | F20: 1 | G20: 1
D23: Independent Variable
D24: Group 1 | E24: Group 2 | F24: Group 3 | G24: Total
B25: Dependent Variable | C25: Attribute 1 | D25: =CONCATENATE("(",D9," ÷ ",$D$12,") x 100 = ",H25) -> (1 ÷ 23) x 100 = 4.35 | E25: =CONCATENATE("(",E9," ÷ ",$E$12,") x 100 = ",I25) -> (5 ÷ 31) x 100 = 16.13 | F25: =CONCATENATE("(",F9," ÷ ",$F$12,") x 100 = ",J25) -> (18 ÷ 24) x 100 = 75 | G25: =CONCATENATE("(",G9," ÷ ",$G$12,") x 100 = ",K25) -> (24 ÷ 78) x 100 = 30.77 | H25: =ROUND((D9/$D$12)*100,2) -> 4.35 | I25: =ROUND((E9/$E$12)*100,2) -> 16.13 | J25: =ROUND((F9/$F$12)*100,2) -> 75 | K25: =ROUND((G9/$G$12)*100,2) -> 30.77
C26: Attribute 2 | D26: =CONCATENATE("(",D10," ÷ ",$D$12,") x 100 = ",H26) -> (8 ÷ 23) x 100 = 34.78 | E26: =CONCATENATE("(",E10," ÷ ",$E$12,") x 100 = ",I26) -> (17 ÷ 31) x 100 = 54.84 | F26: =CONCATENATE("(",F10," ÷ ",$F$12,") x 100 = ",J26) -> (1 ÷ 24) x 100 = 4.17 | G26: =CONCATENATE("(",G10," ÷ ",$G$12,") x 100 = ",K26) -> (26 ÷ 78) x 100 = 33.33 | H26: =ROUND((D10/$D$12)*100,2) -> 34.78 | I26: =ROUND((E10/$E$12)*100,2) -> 54.84 | J26: =ROUND((F10/$F$12)*100,2) -> 4.17 | K26: =ROUND((G10/$G$12)*100,2) -> 33.33
C27: Attribute 3 | D27: =CONCATENATE("(",D11," ÷ ",$D$12,") x 100 = ",H27) -> (14 ÷ 23) x 100 = 60.87 | E27: =CONCATENATE("(",E11," ÷ ",$E$12,") x 100 = ",I27) -> (9 ÷ 31) x 100 = 29.03 | F27: =CONCATENATE("(",F11," ÷ ",$F$12,") x 100 = ",J27) -> (5 ÷ 24) x 100 = 20.83 | G27: =CONCATENATE("(",G11," ÷ ",$G$12,") x 100 = ",K27) -> (28 ÷ 78) x 100 = 35.9 | H27: 60.87 | I27: 29.03 | J27: 20.83 | K27: 35.9
C28: Total | D28: =CONCATENATE("(",D12," ÷ ",$D$12,") x 100 = ",H28) -> (23 ÷ 23) x 100 = 100 | E28: =CONCATENATE("(",E12," ÷ ",$E$12,") x 100 = ",I28) -> (31 ÷ 31) x 100 = 100 | F28: =CONCATENATE("(",F12," ÷ ",$F$12,") x 100 = ",J28) -> (24 ÷ 24) x 100 = 100 | G28: =CONCATENATE("(",G12," ÷ ",$G$12,") x 100 = ",K28) -> (78 ÷ 78) x 100 = 100 | H28: 100 | I28: 100 | J28: 100 | K28: 100
D30: =CONCATENATE("(",D9," ÷ ",$D$12,") x 100 = ?") -> (1 ÷ 23) x 100 = ? | E30: =CONCATENATE("(",E9," ÷ ",$E$12,") x 100 = ?") -> (5 ÷ 31) x 100 = ? | F30: =CONCATENATE("(",F9," ÷ ",$F$12,") x 100 = ?") -> (18 ÷ 24) x 100 = ? | G30: =CONCATENATE("(",G9," ÷ ",$G$12,") x 100 = ?") -> (24 ÷ 78) x 100 = ?
D31: =CONCATENATE("(",D10," ÷ ",$D$12,") x 100 = ?") -> (8 ÷ 23) x 100 = ? | E31: =CONCATENATE("(",E10," ÷ ",$E$12,") x 100 = ?") -> (17 ÷ 31) x 100 = ? | F31: =CONCATENATE("(",F10," ÷ ",$F$12,") x 100 = ?") -> (1 ÷ 24) x 100 = ? | G31: =CONCATENATE("(",G10," ÷ ",$G$12,") x 100 = ?") -> (26 ÷ 78) x 100 = ?
D32: (14 ÷ 23) x 100 = ? | E32: (9 ÷ 31) x 100 = ? | F32: (5 ÷ 24) x 100 = ? | G32: (28 ÷ 78) x 100 = ?
D33: (23 ÷ 23) x 100 = ? | E33: (31 ÷ 31) x 100 = ? | F33: (24 ÷ 24) x 100 = ? | G33: (78 ÷ 78) x 100 = ?
